[Event "MČR juniorů a juniorek v rapid šachu 2024"]
[Site "Hotel Fit Fun, Harrachov, Czech Republic"]
[Date "2024.09.22"]
[Round "8.29"]
[White "Hyam Robin"]
[Black "Pejrimovsky Tadeas Rubel"]
[Result "1/2-1/2"]
[TimeControl "20+5"]
[WhiteFideId "23773413"]
[BlackFideId "23709537"]
[WhiteElo "1571"]
[BlackElo "1895"]

1. e4 {[%clk 00:20:07]} {[%emt 00:00:01]} c5 {[%clk 00:20:09]} {[%emt
00:00:01]} 2. b3 {[%clk 00:20:07]} {[%emt 00:00:06]} e6 {[%clk 00:20:12]}
{[%emt 00:00:02]} 3. Bb2 {[%clk 00:20:09]} {[%emt 00:00:02]} d6 {[%clk
00:20:16]} {[%emt 00:00:02]} 4. Bb5+ {[%clk 00:20:11]} {[%emt 00:00:03]} Nd7
{[%clk 00:20:14]} {[%emt 00:00:07]} 5. d3 {[%clk 00:19:58]} {[%emt 00:00:17]}
a6 {[%clk 00:20:17]} {[%emt 00:00:03]} 6. Bxd7+ {[%clk 00:20:01]} {[%emt
00:00:02]} Bxd7 {[%clk 00:20:20]} {[%emt 00:00:02]} 7. f4 {[%clk 00:20:01]}
{[%emt 00:00:04]} Nf6 {[%clk 00:20:12]} {[%emt 00:00:14]} 8. Nd2 {[%clk
00:19:53]} {[%emt 00:00:13]} Be7 {[%clk 00:19:54]} {[%emt 00:00:23]} 9. g4
{[%clk 00:19:49]} {[%emt 00:00:09]} h6 {[%clk 00:18:54]} {[%emt 00:01:04]} 10.
Qf3 {[%clk 00:19:32]} {[%emt 00:00:22]} Qc7 {[%clk 00:18:14]} {[%emt 00:00:45]}
11. Ne2 {[%clk 00:19:04]} {[%emt 00:00:33]} Bc6 {[%clk 00:16:01]} {[%emt
00:02:18]} 12. O-O-O {[%clk 00:16:56]} {[%emt 00:02:13]} O-O-O {[%clk
00:15:17]} {[%emt 00:00:49]} 13. h4 {[%clk 00:15:24]} {[%emt 00:01:37]} Rhg8
{[%clk 00:12:28]} {[%emt 00:02:55]} 14. g5 {[%clk 00:14:41]} {[%emt 00:00:48]}
Nd7 {[%clk 00:12:01]} {[%emt 00:00:33]} 15. gxh6 {[%clk 00:13:57]} {[%emt
00:00:48]} gxh6 {[%clk 00:12:04]} {[%emt 00:00:02]} 16. Qh5 {[%clk 00:13:19]}
{[%emt 00:00:41]} Rg6 {[%clk 00:08:33]} {[%emt 00:03:38]} 17. Rhg1 {[%clk
00:13:00]} {[%emt 00:00:23]} Rdg8 {[%clk 00:08:19]} {[%emt 00:00:20]} 18. Rxg6
{[%clk 00:12:13]} {[%emt 00:00:53]} Rxg6 {[%clk 00:08:21]} {[%emt 00:00:02]} 19.
Rg1 {[%clk 00:10:23]} {[%emt 00:01:54]} Nf8 {[%clk 00:06:26]} {[%emt 00:02:01]}
20. Rxg6 {[%clk 00:10:09]} {[%emt 00:00:19]} Nxg6 {[%clk 00:06:29]} {[%emt
00:00:02]} 21. Nf3 {[%clk 00:09:29]} {[%emt 00:00:45]} Bf8 {[%clk 00:05:53]}
{[%emt 00:00:40]} 22. f5 {[%clk 00:07:55]} {[%emt 00:01:40]} exf5 {[%clk
00:05:23]} {[%emt 00:00:34]} 23. Qxf5+ {[%clk 00:07:00]} {[%emt 00:01:00]} Kb8
{[%clk 00:05:27]} {[%emt 00:00:02]} 24. h5 {[%clk 00:06:48]} {[%emt 00:00:16]}
Ne5 {[%clk 00:02:36]} {[%emt 00:02:57]} 25. Nxe5 {[%clk 00:06:48]} {[%emt
00:00:05]} dxe5 {[%clk 00:02:40]} 26. Bxe5 {[%clk 00:06:42]} {[%emt 00:00:11]}
Bd6 {[%emt 00:00:04]} 27. Bxd6 {[%clk 00:06:22]} {[%emt 00:00:22]} Qxd6 {[%clk
00:02:47]} {[%emt 00:00:01]} 28. Qxf7 {[%clk 00:06:08]} {[%emt 00:00:18]} Ka7
{[%clk 00:01:18]} {[%emt 00:01:37]} 29. Qf4 {[%clk 00:05:31]} {[%emt 00:00:41]}
Qe6 {[%clk 00:00:44]} {[%emt 00:00:39]} 30. Qf5 {[%clk 00:05:09]} {[%emt
00:00:23]} Qe7 {[%clk 00:00:48]} {[%emt 00:00:04]} 31. Nc3 {[%clk 00:04:19]}
{[%emt 00:00:53]} b6 {[%clk 00:00:26]} {[%emt 00:00:30]} 32. Nd5 {[%clk
00:04:11]} {[%emt 00:00:12]} Qg7 {[%clk 00:00:10]} {[%emt 00:00:21]} 33. Qf6
{[%clk 00:03:03]} {[%emt 00:01:14]} Qg1+ {[%clk 00:00:07]} {[%emt 00:00:08]} 34.
Kb2 {[%clk 00:03:08]} {[%emt 00:00:01]} Bxd5 {[%clk 00:00:11]} {[%emt
00:00:01]} 35. exd5 {[%clk 00:03:05]} {[%emt 00:00:07]} Qe3 {[%clk 00:00:10]}
{[%emt 00:00:05]} 36. Qf7+ {[%clk 00:02:50]} {[%emt 00:00:18]} Kb8 {[%clk
00:00:11]} {[%emt 00:00:06]} 37. Qf8+ {[%clk 00:02:27]} {[%emt 00:00:23]} Kc7
{[%clk 00:00:14]} {[%emt 00:00:08]} 38. d6+ {[%clk 00:02:25]} {[%emt 00:00:06]}
Kc6 {[%clk 00:00:07]} {[%emt 00:00:13]} 39. Qf6 {[%clk 00:01:47]} {[%emt
00:00:40]} Qd4+ {[%clk 00:00:08]} {[%emt 00:00:07]} 40. Qxd4 {[%clk 00:01:49]}
{[%emt 00:00:03]} cxd4 {[%clk 00:00:12]} {[%emt 00:00:01]} 41. a4 {[%clk
00:01:15]} {[%emt 00:00:40]} Kxd6 {[%clk 00:00:15]} {[%emt 00:00:01]} 42. b4
{[%clk 00:01:09]} {[%emt 00:00:11]} Ke5 {[%clk 00:00:13]} {[%emt 00:00:06]} 43.
b5 {[%clk 00:00:49]} {[%emt 00:00:25]} axb5 {[%emt 00:00:06]} 44. axb5 Kd5
{[%clk 00:00:16]} 45. Kb3 {[%clk 00:00:56]} {[%emt 00:00:03]} Kc5 {[%clk
00:00:17]} {[%emt 00:00:04]} 46. Ka4 {[%clk 00:00:48]} {[%emt 00:00:08]} Kd6
{[%clk 00:00:16]} {[%emt 00:00:06]} 47. Kb4 {[%clk 00:00:48]} {[%emt 00:00:10]}
Kd5 {[%clk 00:00:20]} 48. c3 {[%clk 00:00:19]} {[%emt 00:00:34]} dxc3 {[%clk
00:00:24]} {[%emt 00:00:01]} 49. Kxc3 {[%clk 00:00:23]} {[%emt 00:00:02]} Kc5
{[%clk 00:00:28]} 50. Kd2 {[%clk 00:00:11]} {[%emt 00:00:16]} Kxb5 {[%clk
00:00:32]} {[%emt 00:00:02]} 51. Kc3 {[%clk 00:00:14]} {[%emt 00:00:02]} Kc5
{[%clk 00:00:36]} {[%emt 00:00:01]} 52. d4+ {[%clk 00:00:18]} {[%emt 00:00:01]}
Kd5 {[%clk 00:00:39]} {[%emt 00:00:02]} 1/2-1/2



[ePGN "0.1;DGT LiveChess/2.2.6"]

[Event "MČR juniorů a juniorek v rapid šachu 2024"]
[Site "Hotel Fit Fun, Harrachov, Czech Republic"]
[Date "2024.09.22"]
[Round "8.3"]
[White "Rybackova Lucie"]
[Black "Stocek Martin"]
[Result "1-0"]
[TimeControl "20+5"]
[WhiteFideId "23739207"]
[BlackFideId "380121"]
[WhiteElo "1933"]
[BlackElo "2021"]

1. d4 {[%clk 00:20:07]} {[%emt 00:00:02]} Nf6 {[%clk 00:20:04]} {[%emt
00:00:06]} 2. Nf3 {[%clk 00:20:10]} {[%emt 00:00:02]} d5 {[%clk 00:20:08]}
{[%emt 00:00:01]} 3. g3 {[%clk 00:20:14]} {[%emt 00:00:02]} c5 {[%clk
00:20:03]} {[%emt 00:00:09]} 4. Bg2 {[%clk 00:20:15]} {[%emt 00:00:04]} Bf5
{[%clk 00:20:03]} {[%emt 00:00:05]} 5. O-O {[%clk 00:20:09]} {[%emt 00:00:11]}
e6 {[%clk 00:20:07]} {[%emt 00:00:02]} 6. c4 {[%clk 00:20:02]} {[%emt
00:00:13]} Nc6 {[%clk 00:19:33]} {[%emt 00:00:39]} 7. cxd5 {[%clk 00:19:05]}
{[%emt 00:01:02]} exd5 {[%clk 00:19:25]} {[%emt 00:00:12]} 8. Nc3 {[%clk
00:18:58]} {[%emt 00:00:12]} Be7 {[%clk 00:16:41]} {[%emt 00:02:49]} 9. dxc5
{[%clk 00:17:26]} {[%emt 00:01:37]} Bxc5 {[%clk 00:15:02]} {[%emt 00:01:43]} 10.
Na4 {[%clk 00:16:16]} {[%emt 00:01:15]} Be7 {[%clk 00:14:36]} {[%emt 00:00:30]}
11. Be3 {[%clk 00:15:44]} {[%emt 00:00:38]} O-O {[%clk 00:14:00]} {[%emt
00:00:41]} 12. Rc1 {[%clk 00:15:24]} {[%emt 00:00:26]} Be4 {[%clk 00:13:23]}
{[%emt 00:00:42]} 13. Nc5 {[%clk 00:14:29]} {[%emt 00:01:00]} Bxc5 {[%clk
00:12:24]} {[%emt 00:01:04]} 14. Bxc5 {[%clk 00:14:30]} {[%emt 00:00:04]} Re8
{[%clk 00:12:28]} 15. e3 {[%clk 00:13:10]} {[%emt 00:01:24]} Na5 {[%clk
00:11:22]} {[%emt 00:01:11]} 16. b3 {[%clk 00:12:51]} {[%emt 00:00:24]} b6
{[%clk 00:10:53]} {[%emt 00:00:34]} 17. Bd4 {[%clk 00:12:47]} {[%emt 00:00:09]}
Nb7 {[%clk 00:10:56]} {[%emt 00:00:02]} 18. Qd2 {[%clk 00:12:21]} {[%emt
00:00:30]} Qe7 {[%clk 00:10:21]} {[%emt 00:00:40]} 19. Rc3 {[%clk 00:11:14]}
{[%emt 00:01:10]} Nc5 {[%clk 00:09:18]} {[%emt 00:01:10]} 20. Rfc1 {[%clk
00:08:10]} {[%emt 00:03:09]} Ne6 {[%clk 00:07:23]} {[%emt 00:02:00]} 21. Qd1
{[%clk 00:07:06]} {[%emt 00:01:08]} Rad8 {[%clk 00:07:18]} {[%emt 00:00:10]} 22.
Ne5 {[%clk 00:05:23]} {[%emt 00:01:48]} Nxd4 {[%clk 00:05:44]} {[%emt
00:01:40]} 23. exd4 {[%clk 00:05:27]} {[%emt 00:00:01]} Qa3 {[%clk 00:04:35]}
{[%emt 00:01:14]} 24. Rc7 {[%clk 00:03:57]} {[%emt 00:01:34]} Bxg2 {[%clk
00:02:10]} {[%emt 00:02:30]} 25. Kxg2 {[%clk 00:04:01]} {[%emt 00:00:01]} Qxa2
{[%clk 00:01:22]} {[%emt 00:00:52]} 26. Ra1 {[%clk 00:03:19]} {[%emt 00:00:47]}
Qb2 {[%clk 00:01:27]} {[%emt 00:00:01]} 27. Raxa7 {[%clk 00:03:18]} {[%emt
00:00:06]} Rf8 {[%clk 00:00:52]} {[%emt 00:00:39]} 28. Nxf7 {[%clk 00:01:51]}
{[%emt 00:01:31]} Rde8 {[%clk 00:00:49]} {[%emt 00:00:08]} 29. Ne5 {[%clk
00:01:42]} {[%emt 00:00:14]} Nd7 {[%clk 00:00:23]} {[%emt 00:00:32]} 30. Rc2
{[%clk 00:01:31]} {[%emt 00:00:15]} Qxb3 {[%clk 00:00:26]} {[%emt 00:00:03]} 31.
Rxd7 {[%clk 00:01:28]} {[%emt 00:00:08]} Rc8 {[%clk 00:00:22]} {[%emt
00:00:09]} 32. Qg4 {[%clk 00:01:15]} {[%emt 00:00:17]} g6 {[%clk 00:00:17]}
{[%emt 00:00:10]} 33. Rxc8 {[%clk 00:01:03]} {[%emt 00:00:17]} Rxc8 {[%clk
00:00:21]} {[%emt 00:00:02]} 34. Qe6+ {[%clk 00:01:03]} {[%emt 00:00:05]} Kh8
{[%clk 00:00:25]} 35. Rxh7+ {[%clk 00:00:59]} {[%emt 00:00:10]} Kxh7 {[%clk
00:00:29]} {[%emt 00:00:01]} 36. Qxg6+ {[%clk 00:01:02]} {[%emt 00:00:01]} Kh8
{[%clk 00:00:33]} {[%emt 00:00:01]} 37. Nf7# {[%emt 00:00:01]} 1-0



[ePGN "0.1;DGT LiveChess/2.2.6"]

[Event "MČR juniorů a juniorek v rapid šachu 2024"]
[Site "Hotel Fit Fun, Harrachov, Czech Republic"]
[Date "2024.09.22"]
[Round "8.30"]
[White "Plzak David"]
[Black "Hudik Martin"]
[Result "1-0"]
[TimeControl "20+5"]
[WhiteFideId "23776234"]
[BlackFideId "23769947"]
[WhiteElo "1625"]
[BlackElo "1572"]

1. e4 {[%clk 00:20:09]} c5 {[%clk 00:20:09]} 2. Nf3 {[%clk 00:20:13]} {[%emt
00:00:01]} d6 {[%clk 00:20:13]} {[%emt 00:00:01]} 3. d4 {[%clk 00:20:17]}
{[%emt 00:00:01]} cxd4 {[%clk 00:20:17]} {[%emt 00:00:02]} 4. Nxd4 {[%clk
00:20:21]} Nf6 {[%clk 00:20:21]} 5. f3 {[%clk 00:20:25]} e6 {[%clk 00:20:22]}
{[%emt 00:00:06]} 6. c4 {[%clk 00:20:12]} {[%emt 00:00:17]} Be7 {[%clk
00:20:24]} {[%emt 00:00:02]} 7. Nc3 {[%clk 00:20:15]} {[%emt 00:00:03]} O-O
{[%clk 00:20:25]} {[%emt 00:00:04]} 8. Be3 {[%clk 00:20:18]} {[%emt 00:00:02]}
a6 {[%clk 00:20:26]} {[%emt 00:00:05]} 9. Be2 {[%clk 00:19:58]} {[%emt
00:00:25]} Nc6 {[%clk 00:20:27]} {[%emt 00:00:03]} 10. O-O {[%clk 00:19:43]}
{[%emt 00:00:20]} Re8 {[%clk 00:20:25]} {[%emt 00:00:08]} 11. Qd2 {[%clk
00:19:33]} {[%emt 00:00:14]} Bd7 {[%clk 00:20:19]} {[%emt 00:00:11]} 12. Rac1
{[%clk 00:19:17]} {[%emt 00:00:21]} Rc8 {[%clk 00:20:15]} {[%emt 00:00:09]} 13.
Rfd1 {[%clk 00:19:07]} {[%emt 00:00:14]} Ne5 {[%clk 00:20:01]} {[%emt
00:00:20]} 14. b3 {[%clk 00:18:27]} {[%emt 00:00:44]} Bf8 {[%clk 00:19:30]}
{[%emt 00:00:36]} 15. Nc2 {[%clk 00:16:03]} {[%emt 00:02:29]} Ng6 {[%clk
00:18:41]} {[%emt 00:00:54]} 16. Bd3 {[%clk 00:14:37]} {[%emt 00:01:31]} Bc6
{[%clk 00:15:04]} {[%emt 00:03:43]} 17. Nd4 {[%clk 00:13:30]} {[%emt 00:01:11]}
d5 {[%clk 00:14:15]} {[%emt 00:00:54]} 18. exd5 {[%clk 00:12:17]} {[%emt
00:01:19]} exd5 {[%clk 00:14:15]} {[%emt 00:00:06]} 19. Bxg6 {[%clk 00:11:12]}
{[%emt 00:01:09]} hxg6 {[%clk 00:13:45]} {[%emt 00:00:35]} 20. Nxc6 {[%clk
00:10:58]} {[%emt 00:00:18]} bxc6 {[%clk 00:13:46]} {[%emt 00:00:05]} 21. cxd5
{[%clk 00:10:34]} {[%emt 00:00:29]} cxd5 {[%clk 00:13:49]} {[%emt 00:00:02]} 22.
Bg5 {[%clk 00:10:11]} {[%emt 00:00:27]} Bc5+ {[%clk 00:10:52]} {[%emt
00:03:03]} 23. Kh1 {[%clk 00:10:00]} {[%emt 00:00:16]} d4 {[%clk 00:07:38]}
{[%emt 00:03:19]} 24. Ne4 {[%clk 00:09:40]} {[%emt 00:00:25]} Nxe4 {[%clk
00:06:47]} {[%emt 00:00:56]} 25. fxe4 {[%clk 00:09:13]} {[%emt 00:00:31]} f6
{[%clk 00:06:02]} {[%emt 00:00:50]} 26. Bh4 {[%clk 00:08:24]} {[%emt 00:00:55]}
Rxe4 {[%clk 00:05:46]} {[%emt 00:00:21]} 27. Bf2 {[%clk 00:08:00]} {[%emt
00:00:28]} Qe8 {[%clk 00:04:43]} {[%emt 00:01:10]} 28. Qd3 {[%clk 00:07:06]}
{[%emt 00:00:59]} f5 {[%clk 00:02:48]} {[%emt 00:02:00]} 29. Qxa6 {[%clk
00:05:36]} {[%emt 00:01:34]} Re6 {[%clk 00:00:41]} {[%emt 00:02:11]} 30. Qc4
{[%clk 00:05:08]} {[%emt 00:00:33]} Rcc6 {[%clk 00:00:28]} {[%emt 00:00:19]} 31.
Qd3 {[%clk 00:04:41]} {[%emt 00:00:32]} Red6 {[%clk 00:00:09]} {[%emt
00:00:24]} 32. Bg3 {[%clk 00:04:11]} {[%emt 00:00:35]} Rd7 {[%clk 00:00:08]}
{[%emt 00:00:07]} 33. Qf3 {[%clk 00:03:32]} {[%emt 00:00:43]} Qe6 {[%clk
00:00:08]} {[%emt 00:00:04]} 34. Re1 {[%clk 00:03:32]} {[%emt 00:00:06]} Qf6
{[%clk 00:00:08]} {[%emt 00:00:06]} 35. Be5 {[%clk 00:03:18]} {[%emt 00:00:18]}
Qe6 {[%clk 00:00:06]} {[%emt 00:00:07]} 36. Bxd4 {[%clk 00:02:18]} {[%emt
00:01:05]} Qd5 {[%clk 00:00:06]} {[%emt 00:00:05]} 37. Qxd5+ {[%clk 00:01:31]}
{[%emt 00:00:53]} Rxd5 {[%clk 00:00:10]} {[%emt 00:00:01]} 38. Bxc5 {[%clk
00:01:22]} {[%emt 00:00:13]} Rdxc5 {[%clk 00:00:13]} {[%emt 00:00:02]} 39. Rxc5
{[%clk 00:01:26]} {[%emt 00:00:02]} Rxc5 {[%clk 00:00:16]} {[%emt 00:00:01]} 40.
h3 {[%clk 00:01:25]} {[%emt 00:00:06]} Rc2 {[%clk 00:00:17]} {[%emt 00:00:04]}
41. Ra1 {[%clk 00:01:29]} {[%emt 00:00:02]} Kf7 {[%clk 00:00:19]} {[%emt
00:00:03]} 42. Kh2 {[%clk 00:01:14]} {[%emt 00:00:20]} Ke6 {[%clk 00:00:22]}
{[%emt 00:00:02]} 43. b4 {[%clk 00:01:12]} {[%emt 00:00:06]} Rb2 {[%clk
00:00:25]} {[%emt 00:00:02]} 44. a3 {[%clk 00:01:17]} Kd5 {[%clk 00:00:24]}
{[%emt 00:00:05]} 45. Kg3 {[%clk 00:01:08]} {[%emt 00:00:14]} Kc4 {[%clk
00:00:15]} {[%emt 00:00:14]} 46. Rf1 {[%clk 00:00:50]} {[%emt 00:00:23]} 1-0



[ePGN "0.1;DGT LiveChess/2.2.6"]

[Event "MČR juniorů a juniorek v rapid šachu 2024"]
[Site "Hotel Fit Fun, Harrachov, Czech Republic"]
[Date "2024.09.22"]
[Round "8.31"]
[White "Kopecka Libuse"]
[Black "Zadrapova Gabriela"]
[Result "1-0"]
[TimeControl "20+5"]
[WhiteFideId "23748826"]
[BlackFideId "23753056"]
[WhiteElo "1496"]
[BlackElo "1456"]

1. e4 {[%clk 00:20:08]} e5 {[%clk 00:20:09]} {[%emt 00:00:02]} 2. Nf3 {[%clk
00:20:12]} {[%emt 00:00:01]} Nc6 {[%clk 00:20:13]} {[%emt 00:00:02]} 3. Nc3
{[%clk 00:20:14]} {[%emt 00:00:02]} Nf6 {[%clk 00:20:17]} 4. Bb5 {[%clk
00:20:18]} {[%emt 00:00:02]} Bb4 {[%clk 00:20:18]} {[%emt 00:00:04]} 5. Bxc6
{[%clk 00:20:21]} {[%emt 00:00:01]} dxc6 {[%clk 00:20:21]} {[%emt 00:00:02]} 6.
d3 {[%clk 00:20:24]} {[%emt 00:00:02]} O-O {[%clk 00:20:11]} {[%emt 00:00:16]}
7. Nxe5 {[%clk 00:19:26]} {[%emt 00:01:03]} Qd4 {[%clk 00:20:14]} {[%emt
00:00:01]} 8. Nf3 {[%clk 00:19:10]} {[%emt 00:00:21]} Qc5 {[%clk 00:20:12]}
{[%emt 00:00:06]} 9. Be3 {[%clk 00:18:23]} {[%emt 00:00:53]} Bxc3+ {[%clk
00:20:06]} {[%emt 00:00:12]} 10. bxc3 {[%clk 00:17:53]} {[%emt 00:00:34]} Qxc3+
{[%clk 00:20:10]} {[%emt 00:00:02]} 11. Bd2 {[%clk 00:17:57]} Qc5 {[%clk
00:19:22]} {[%emt 00:00:47]} 12. O-O {[%clk 00:17:14]} {[%emt 00:00:53]} Bg4
{[%clk 00:19:01]} {[%emt 00:00:26]} 13. Rb1 {[%clk 00:16:35]} {[%emt 00:00:45]}
b6 {[%clk 00:18:32]} {[%emt 00:00:34]} 14. Bb4 {[%clk 00:16:23]} {[%emt
00:00:17]} Qh5 {[%clk 00:18:04]} {[%emt 00:00:33]} 15. Bxf8 {[%clk 00:15:34]}
{[%emt 00:00:54]} Rxf8 {[%clk 00:18:05]} {[%emt 00:00:05]} 16. Re1 {[%clk
00:14:14]} {[%emt 00:01:24]} Nd7 {[%clk 00:17:19]} {[%emt 00:00:51]} 17. h3
{[%clk 00:12:37]} {[%emt 00:01:41]} Bxf3 {[%clk 00:16:27]} {[%emt 00:00:58]} 18.
Qxf3 {[%clk 00:12:40]} {[%emt 00:00:02]} Qa5 {[%clk 00:14:31]} {[%emt
00:02:01]} 19. Qf5 {[%clk 00:10:26]} {[%emt 00:02:19]} Nc5 {[%clk 00:11:17]}
{[%emt 00:03:19]} 20. d4 {[%clk 00:08:58]} {[%emt 00:01:33]} Ne6 {[%clk
00:11:06]} {[%emt 00:00:17]} 21. Qxa5 {[%clk 00:08:51]} {[%emt 00:00:11]} bxa5
{[%clk 00:11:09]} 22. d5 {[%clk 00:08:41]} {[%emt 00:00:16]} cxd5 {[%clk
00:11:11]} {[%emt 00:00:03]} 23. exd5 {[%clk 00:08:45]} {[%emt 00:00:01]} Nd4
{[%clk 00:11:06]} {[%emt 00:00:10]} 24. c3 {[%clk 00:08:08]} {[%emt 00:00:41]}
Nf5 {[%clk 00:10:55]} {[%emt 00:00:16]} 25. Rb7 {[%clk 00:07:14]} {[%emt
00:01:00]} Ra8 {[%clk 00:10:20]} {[%emt 00:00:40]} 26. Rxa7 {[%clk 00:06:21]}
{[%emt 00:00:58]} Rd8 {[%clk 00:10:16]} {[%emt 00:00:09]} 27. Rxc7 {[%clk
00:05:45]} {[%emt 00:00:41]} h6 {[%clk 00:10:11]} {[%emt 00:00:10]} 28. Rc5
{[%clk 00:05:39]} {[%emt 00:00:12]} Ra8 {[%clk 00:10:07]} {[%emt 00:00:08]} 29.
Rd1 {[%clk 00:05:07]} {[%emt 00:00:37]} Kf8 {[%clk 00:10:07]} {[%emt 00:00:05]}
30. d6 {[%clk 00:05:07]} {[%emt 00:00:05]} Rd8 {[%clk 00:10:05]} {[%emt
00:00:06]} 31. Rxf5 {[%clk 00:05:07]} {[%emt 00:00:06]} g6 {[%clk 00:10:01]}
{[%emt 00:00:09]} 32. Rxa5 {[%clk 00:05:08]} {[%emt 00:00:03]} Rd7 {[%clk
00:09:51]} {[%emt 00:00:15]} 33. Rc5 {[%clk 00:05:04]} {[%emt 00:00:10]} Kg7
{[%clk 00:09:45]} {[%emt 00:00:11]} 34. Rc7 {[%clk 00:05:04]} {[%emt 00:00:05]}
Rd8 {[%clk 00:09:45]} {[%emt 00:00:04]} 35. d7 {[%clk 00:05:05]} {[%emt
00:00:04]} 1-0



[ePGN "0.1;DGT LiveChess/2.2.6"]

[Event "MČR juniorů a juniorek v rapid šachu 2024"]
[Site "Hotel Fit Fun, Harrachov, Czech Republic"]
[Date "2024.09.22"]
[Round "8.32"]
[White "Boff Vojtech"]
[Black "Kopecka Anna"]
[Result "1-0"]
[TimeControl "20+5"]
[WhiteFideId "23733969"]
[BlackFideId "23767740"]
[WhiteElo "1719"]
[BlackElo "1431"]

1. d4 {[%clk 00:20:07]} {[%emt 00:00:03]} d5 {[%clk 00:20:09]} {[%emt
00:00:02]} 2. Nf3 {[%clk 00:20:07]} {[%emt 00:00:04]} e6 {[%clk 00:20:11]}
{[%emt 00:00:04]} 3. c4 {[%clk 00:20:08]} {[%emt 00:00:02]} c5 {[%clk
00:20:10]} {[%emt 00:00:07]} 4. cxd5 {[%clk 00:20:07]} {[%emt 00:00:06]} exd5
{[%clk 00:20:12]} {[%emt 00:00:03]} 5. Nc3 {[%clk 00:20:08]} {[%emt 00:00:03]}
Nf6 {[%clk 00:20:01]} {[%emt 00:00:16]} 6. Bg5 {[%clk 00:20:08]} {[%emt
00:00:06]} Be7 {[%clk 00:19:33]} {[%emt 00:00:33]} 7. dxc5 {[%clk 00:20:03]}
{[%emt 00:00:10]} Bxc5 {[%clk 00:16:07]} {[%emt 00:03:30]} 8. Bxf6 {[%clk
00:19:04]} {[%emt 00:01:05]} Qxf6 {[%clk 00:15:44]} {[%emt 00:00:27]} 9. Qxd5
{[%clk 00:19:02]} {[%emt 00:00:07]} Qc6 {[%clk 00:14:35]} {[%emt 00:01:13]} 10.
Qxc6+ {[%clk 00:18:53]} {[%emt 00:00:15]} Nxc6 {[%clk 00:14:37]} {[%emt
00:00:03]} 11. e3 {[%clk 00:18:45]} {[%emt 00:00:13]} O-O {[%clk 00:14:11]}
{[%emt 00:00:32]} 12. Be2 {[%clk 00:18:13]} {[%emt 00:00:35]} Bg4 {[%clk
00:13:42]} {[%emt 00:00:36]} 13. O-O {[%clk 00:17:50]} {[%emt 00:00:27]} Rad8
{[%clk 00:12:59]} {[%emt 00:00:49]} 14. Rfd1 {[%clk 00:16:56]} {[%emt
00:00:58]} Rd6 {[%clk 00:12:33]} {[%emt 00:00:31]} 15. Ne4 {[%clk 00:16:24]}
{[%emt 00:00:38]} Rxd1+ {[%clk 00:12:09]} {[%emt 00:00:29]} 16. Rxd1 {[%clk
00:16:26]} {[%emt 00:00:02]} Bb6 {[%clk 00:10:56]} {[%emt 00:01:18]} 17. h3
{[%clk 00:16:00]} {[%emt 00:00:31]} Bh5 {[%clk 00:10:36]} {[%emt 00:00:25]} 18.
Nd6 {[%clk 00:15:53]} {[%emt 00:00:11]} Na5 {[%clk 00:09:59]} {[%emt 00:00:43]}
19. b4 {[%clk 00:15:00]} {[%emt 00:00:57]} Nc6 {[%clk 00:09:04]} {[%emt
00:01:00]} 20. a3 {[%clk 00:14:45]} {[%emt 00:00:21]} Nd8 {[%clk 00:08:49]}
{[%emt 00:00:19]} 21. Nc4 {[%clk 00:14:18]} {[%emt 00:00:32]} Bc7 {[%clk
00:08:28]} {[%emt 00:00:27]} 22. Rd7 {[%clk 00:13:37]} {[%emt 00:00:45]} Ne6
{[%clk 00:08:05]} {[%emt 00:00:28]} 23. Kf1 {[%clk 00:12:43]} {[%emt 00:00:59]}
Rd8 {[%clk 00:07:29]} {[%emt 00:00:40]} 24. Rxd8+ {[%clk 00:12:26]} {[%emt
00:00:24]} Nxd8 {[%clk 00:07:32]} {[%emt 00:00:02]} 25. Nd4 {[%clk 00:12:18]}
{[%emt 00:00:12]} Bxe2+ {[%clk 00:07:18]} {[%emt 00:00:19]} 26. Kxe2 {[%clk
00:12:21]} {[%emt 00:00:02]} Kf8 {[%clk 00:06:33]} {[%emt 00:00:50]} 27. Nb5
{[%clk 00:11:57]} {[%emt 00:00:29]} Bb8 {[%clk 00:05:55]} {[%emt 00:00:43]} 28.
Kd3 {[%clk 00:11:30]} {[%emt 00:00:31]} Ke7 {[%clk 00:05:44]} {[%emt 00:00:17]}
29. Nd4 {[%clk 00:11:05]} {[%emt 00:00:29]} Kf6 {[%clk 00:04:54]} {[%emt
00:00:56]} 30. g3 {[%clk 00:10:41]} {[%emt 00:00:30]} g6 {[%clk 00:04:21]}
{[%emt 00:00:38]} 31. Ke4 {[%clk 00:10:01]} {[%emt 00:00:45]} Ne6 {[%clk
00:03:50]} {[%emt 00:00:36]} 32. Nxe6 {[%clk 00:09:57]} {[%emt 00:00:08]} Kxe6
{[%clk 00:03:53]} {[%emt 00:00:02]} 33. Na5 {[%clk 00:09:50]} {[%emt 00:00:12]}
b6 {[%clk 00:03:42]} {[%emt 00:00:16]} 34. Nc6 {[%clk 00:09:51]} {[%emt
00:00:03]} f5+ {[%clk 00:02:31]} {[%emt 00:01:17]} 35. Kd4 {[%clk 00:09:49]}
{[%emt 00:00:07]} Bc7 {[%clk 00:01:58]} {[%emt 00:00:38]} 36. Nxa7 {[%clk
00:09:48]} {[%emt 00:00:06]} Be5+ {[%clk 00:01:22]} {[%emt 00:00:42]} 37. Kd3
{[%clk 00:09:31]} {[%emt 00:00:21]} Kd5 {[%clk 00:00:55]} {[%emt 00:00:33]} 38.
Nb5 {[%clk 00:09:23]} {[%emt 00:00:12]} Kc6 {[%clk 00:00:20]} {[%emt 00:00:39]}
39. Nc3 {[%clk 00:09:25]} {[%emt 00:00:04]} 1-0



[ePGN "0.1;DGT LiveChess/2.2.6"]